bitfinex/quotes_SOLUSD_20260226
["timestamp","ask_amount","ask_price","bid_price","bid_amount"]
[1772064358473,3.71215437,88.199,88.151,11.34414476]
[1772064358678,3.71215437,88.199,88.152,3.55086858]
[1772064358879,3.71215437,88.197,88.152,3.55086858]
[1772064359084,3.71215437,88.189,88.152,3.55086858]
[1772064359976,3.71215437,88.189,88.153,11.34391342]
[1772064360379,3.71215437,88.189,88.16,10.60092612]
[1772064360693,45.32299503,88.256,88.181,3.55086858]
[1772064360694,11.33632612,88.212,88.181,3.55086858]
[1772064360893,50.68819435,88.247,88.201,3.55086858]
[1772064360894,3.71215437,88.247,88.201,3.55086858]
[1772064361092,3.71215437,88.247,88.192,39.68613933]
[1772064361093,3.71215437,88.246,88.22,10.60092612]
[1772064361591,3.71215437,88.246,88.2,10.60092612]
[1772064361992,3.71215437,88.246,88.192,11.33889695]
[1772064361993,39.66140491,88.247,88.22,10.60092612]
[1772064362196,11.33182997,88.247,88.221,3.55086858]
[1772064362373,11.33182997,88.247,88.23,10.60092612]
[1772064362985,39.6573604,88.256,88.221,3.55086858]
[1772064363888,3.71215437,88.255,88.221,3.55086858]
[1772064364094,3.71215437,88.255,88.22,10.60092612]
[1772064364609,3.71215437,88.239,88.2,10.60092612]
[1772064365099,3.71215437,88.237,88.19,10.60092612]
[1772064365281,3.71215437,88.229,88.181,3.55086858]
[1772064365595,3.71215437,88.229,88.18,10.60092612]
[1772064365794,96.33037919,88.238,88.171,11.34159757]
[1772064365795,3.71215437,88.219,88.171,11.34159757]
[1772064365996,3.71215437,88.219,88.18,10.60092612]
[1772064366601,3.71215437,88.219,88.131,45.38650935]
[1772064366602,3.71215437,88.209,88.16,10.60092612]
[1772064366805,3.71215437,88.209,88.104,45.40077204]
[1772064366806,3.71215437,88.199,88.15,10.60092612]
[1772064366986,3.71215437,88.199,88.16,10.60092612]
[1772064367187,11.33619761,88.213,88.181,3.55086858]
[1772064367392,3.71215437,88.212,88.181,3.55086858]
[1772064367596,3.71215437,88.212,88.17,10.60092612]
[1772064367597,3.71215437,88.212,88.171,3.55086858]
[1772064368499,3.71215437,88.212,88.17,10.60092612]
[1772064368688,3.71215437,88.212,88.171,3.55086858]
[1772064369598,3.71215437,88.21,88.168,11.34196585]
[1772064369814,3.71215437,88.21,88.17,10.60092612]
[1772064370303,3.71215437,88.21,88.171,3.55086858]
[1772064370605,11.33504114,88.222,88.2,10.60092612]
[1772064370994,3.71215437,88.233,88.201,3.55086858]
[1772064371707,11.33375646,88.232,88.201,3.55086858]
[1772064372296,39.66814761,88.232,88.201,3.55086858]
[1772064372507,11.33375646,88.232,88.201,3.55086858]
[1772064373006,11.33375646,88.232,88.203,3.55086858]
[1772064373388,3.71215437,88.229,88.156,3.55086858]
[1772064373589,3.71215437,88.229,88.176,3.55086858]
[1772064373795,3.71215437,88.217,88.17,10.60092612]
[1772064374003,3.71215437,88.217,88.171,3.55086858]
[1772064374287,3.71215437,88.217,88.18,10.60092612]
[1772064375403,3.71215437,88.217,88.18,10.59216695]
[1772064375893,3.71215437,88.215,88.18,10.59216695]
[1772064376492,3.71215437,88.215,88.18,25.48340512]
[1772064376719,11.33324266,88.236,88.201,3.55086858]
[1772064376919,39.66638399,88.236,88.201,3.55086858]
[1772064377092,3.71215437,88.235,88.19,10.59216695]
[1772064377414,3.71215437,88.235,88.191,3.55086858]
[1772064378111,3.71215437,88.233,88.191,3.55086858]
[1772064378291,3.71215437,88.229,88.18,14.14303553]
[1772064378497,3.71215437,88.219,88.17,10.59216695]
[1772064378813,3.71215437,88.219,88.17,14.14303553]
[1772064378988,3.71215437,88.219,88.17,10.59216695]
[1772064379193,3.71215437,88.219,88.171,3.55086858]
[1772064379406,85.00124667,88.234,88.191,3.55086858]
[1772064379407,3.71215437,88.23,88.191,3.55086858]
[1772064379712,39.66724844,88.234,88.201,3.55086858]
[1772064379914,11.33349955,88.234,88.201,3.55086858]
[1772064380292,104.1,88.246,88.201,3.55086858]
[1772064380293,3.71215437,88.239,88.201,3.55086858]
[1772064380496,39.66455122,88.24,88.17,3.69383402]
[1772064380497,11.33272892,88.24,88.211,3.55086858]
[1772064380815,3.71215437,88.239,88.21,10.59216695]
[1772064381113,11.33272892,88.24,88.211,3.55086858]
[1772064381993,3.71215437,88.239,88.178,3.55086858]
[1772064382193,3.71215437,88.219,88.171,3.55086858]
[1772064383113,3.71215437,88.207,88.171,3.55086858]
[1772064383408,3.71215437,88.248,88.201,3.55086858]
[1772064383826,3.71215437,88.248,88.211,3.55086858]
[1772064384819,3.71215437,88.248,88.172,96.40248603]
[1772064384820,3.71215437,88.248,88.181,3.55086858]
[1772064385003,3.71215437,88.239,88.191,3.55086858]
[1772064385214,3.71215437,88.237,88.201,3.55086858]
[1772064385798,3.71215437,88.237,88.191,3.89605089]
[1772064386003,3.71215437,88.237,88.193,3.89605089]
[1772064386217,11.33298578,88.238,88.201,3.89605089]
[1772064386527,11.33298578,88.238,88.2,10.59216695]
[1772064386528,5.36086188,88.287,88.2,10.59216695]
[1772064386529,3.60006017,88.295,88.231,3.51028909]
[1772064386738,3.60006017,88.295,88.26,10.59216695]
[1772064387025,0.1,88.31,88.271,3.31028909]
[1772064387326,3.60006017,88.329,88.29,10.59216695]
[1772064387523,11.32197267,88.324,88.29,10.59216695]
[1772064387722,3.60006017,88.323,88.283,11.32720149]
[1772064388228,3.60006017,88.319,88.27,10.59216695]
[1772064388728,3.60006017,88.319,88.261,11.33003251]
[1772064389219,3.60006017,88.317,88.27,10.59216695]
[1772064389820,3.60006017,88.317,88.28,10.59216695]
[1772064390145,10.69216695,88.34,88.261,39.6551138]
[1772064390146,3.60006017,88.328,88.29,10.59216695]
[1772064390307,11.32147898,88.328,88.3,10.59216695]
[1772064390617,0.2725451,88.347,88.32,10.59216695]
[1772064390813,11.31913159,88.346,88.32,10.59216695]
[1772064391209,3.94031717,88.397,88.343,3.69383402]
[1772064391425,3.94031717,88.397,88.351,0.03231841]
[1772064391614,11.31078076,88.412,88.37,10.59216695]
[1772064391821,3.94031717,88.411,88.39,10.59216695]
[1772064392010,3.94031717,88.411,88.323,5.36086188]
[1772064392011,3.94031717,88.423,88.372,0.03231841]
[1772064392210,3.94031717,88.448,88.41,10.59216695]
[1772064392717,3.94031717,88.465,88.44,10.59216695]
[1772064392914,3.94031717,88.492,88.435,0.04915987]
[1772064393121,3.94031717,88.492,88.434,0.04915987]
[1772064393331,3.94031717,88.492,88.47,10.59216695]
[1772064393634,90.36358176,88.532,88.44,10.59216695]
[1772064393635,3.94031717,88.518,88.48,10.59216695]
[1772064393924,3.94031717,88.518,88.473,0.06580788]
[1772064393925,11.29684064,88.521,88.5,10.59216695]
[1772064394135,3.94031717,88.53,88.451,0.28432314]
[1772064394136,11.56901367,88.524,88.51,10.59216695]
[1772064394339,0.2725451,88.524,88.51,10.59216695]
[1772064394515,11.29649921,88.523,88.5,10.59216695]
[1772064395037,11.29649921,88.523,88.424,0.08226467]
[1772064395038,3.94031717,88.509,88.424,0.08226467]
[1772064395225,3.94031717,88.507,88.46,10.59216695]
[1772064395743,3.94031717,88.523,88.5,10.59216695]
[1772064396037,3.94031717,88.509,88.45,10.59216695]
[1772064396213,3.94031717,88.499,88.45,10.59216695]
[1772064396617,3.94031717,88.499,88.46,10.59216695]
[1772064397228,10.59216695,88.51,88.439,0.11754219]
[1772064397229,15.24000755,88.498,88.47,10.59216695]
[1772064397412,3.94031717,88.497,88.46,10.59216695]
[1772064398133,3.94031717,88.497,88.47,10.59216695]
[1772064398331,11.29969038,88.498,88.47,10.59216695]
[1772064398633,4.00845023,88.523,88.48,10.59216695]
[1772064399128,4.00845023,88.519,88.47,10.59216695]
[1772064399628,5.90620601,88.578,88.44,10.59216695]
[1772064399629,4.00845023,88.529,88.5,10.59216695]
[1772064399818,15.30422253,88.529,88.5,10.59216695]
[1772064400018,4.00845023,88.522,88.49,10.59216695]
[1772064400426,4.00845023,88.522,88.48,10.59216695]
[1772064400619,4.00845023,88.522,88.49,10.59216695]
[1772064401221,4.00845023,88.519,88.47,10.59216695]
[1772064402952,4.00845023,88.509,88.47,10.59216695]
[1772064403448,4.00845023,88.507,88.47,10.59216695]
[1772064403745,4.00845023,88.489,88.418,0.10878064]
[1772064404053,45.18802862,88.52,88.418,0.10878064]
[1772064404054,34.11,88.629,88.48,10.59216695]
[1772064404341,10.59216695,88.53,88.48,10.59216695]
[1772064405137,28.2419623,88.521,88.48,10.59216695]
[1772064405638,10.59216695,88.52,88.48,10.59216695]
[1772064405819,28.2419623,88.521,88.449,3.68729646]
[1772064406018,28.2419623,88.521,88.45,10.59216695]
[1772064406019,3.79953575,88.499,88.45,10.59216695]
[1772064406728,3.79953575,88.499,88.46,10.59216695]
[1772064407426,3.79953575,88.497,88.46,10.59216695]
[1772064408257,3.79953575,88.497,88.423,3.69383402]
[1772064408258,3.79953575,88.469,88.42,10.59216695]
[1772064408460,3.79953575,88.469,88.402,3.68729646]
[1772064408461,3.79953575,88.449,88.402,3.68729646]
[1772064408747,3.79953575,88.449,88.41,10.59216695]
[1772064409549,11.30607814,88.448,88.41,10.59216695]
[1772064409944,3.79953575,88.447,88.41,10.59216695]
[1772064410658,3.79953575,88.513,88.441,3.68729646]
[1772064410863,3.79953575,88.513,88.48,10.59216695]
[1772064411057,3.79953575,88.513,88.49,10.59216695]
[1772064411251,10.69216695,88.54,88.5,10.59216695]
[1772064411252,0.1,88.54,88.5,10.59216695]
[1772064411434,0.1,88.54,88.51,10.59216695]
[1772064411638,11.2944578,88.539,88.51,10.59216695]
[1772064411932,11.2944578,88.539,88.52,10.59216695]
[1772064412342,11.29378814,88.545,88.53,10.59216695]
[1772064413055,11.29378814,88.545,88.517,3.68729646]
[1772064413264,11.29378814,88.545,88.52,10.59216695]
[1772064413454,39.52801932,88.545,88.52,10.59216695]
[1772064413769,3.79953575,88.558,88.51,10.59216695]
[1772064413941,3.79953575,88.558,88.52,10.59216695]
[1772064415735,4.12779273,88.556,88.491,3.96020958]
[1772064415941,4.12779273,88.549,88.51,10.59216695]
[1772064416471,4.12779273,88.539,88.477,3.96020958]
[1772064416755,4.12779273,88.529,88.49,10.59216695]
[1772064417665,4.12779273,88.529,88.477,3.96020958]
[1772064417666,4.12779273,88.529,88.48,10.59216695]
[1772064417842,10.59216695,88.53,88.49,10.59216695]
[1772064417843,4.12779273,88.527,88.49,10.59216695]
[1772064419651,11.29586119,88.528,88.51,10.59216695]
[1772064419965,4.12779273,88.552,88.52,10.59216695]
[1772064420358,39.52459549,88.553,88.53,10.59216695]
[1772064420359,11.29267218,88.553,88.53,10.59216695]
[1772064420549,11.29200869,88.559,88.54,10.59216695]
[1772064420751,11.29200869,88.559,88.53,10.59216695]
[1772064420950,4.12779273,88.558,88.52,10.59216695]
[1772064421665,4.12779273,88.529,88.49,10.59216695]
[1772064421846,4.12779273,88.527,88.49,10.59216695]
[1772064422047,11.29586119,88.528,88.51,10.59216695]
[1772064422262,4.12779273,88.552,88.52,10.59216695]
[1772064422263,11.29292723,88.551,88.52,10.59216695]
[1772064422770,39.52549213,88.551,88.53,10.59216695]
[1772064423468,39.52549213,88.551,88.52,10.59216695]
[1772064424156,4.12779273,88.561,88.52,10.59216695]
[1772064424349,4.12779273,88.559,88.514,3.96020958]
[1772064424555,4.12779273,88.559,88.52,10.59216695]
[1772064425365,4.12779273,88.559,88.53,10.59216695]
[1772064425754,4.12779273,88.559,88.52,10.59216695]
[1772064426350,45.1541007,88.586,88.54,10.59216695]
[1772064426351,11.29203459,88.558,88.54,10.59216695]
[1772064427977,11.29203459,88.558,88.5,10.59216695]
[1772064427978,4.12779273,88.557,88.52,10.59216695]
[1772064428351,39.52301368,88.556,88.53,10.59216695]
[1772064429070,11.29228962,88.556,88.54,10.59216695]
[1772064430345,51.04136053,88.623,88.55,10.59216695]
[1772064430346,39.51275132,88.579,88.55,10.59216695]
[1772064430550,4.28649385,88.635,88.57,10.59216695]
[1772064430750,4.28649385,88.619,88.58,10.59216695]
[1772064430951,4.28649385,88.599,88.568,5.89968746]
[1772064431652,4.28649385,88.599,88.57,10.59216695]
[1772064432056,4.28649385,88.619,88.58,10.59216695]
[1772064432255,4.28649385,88.619,88.568,5.89968746]
[1772064432256,11.28235214,88.634,88.6,10.59216695]
[1772064432458,11.27649977,88.68,88.621,0.03086217]
[1772064432662,4.28649385,88.679,88.65,10.59216695]
[1772064433175,4.28649385,88.679,88.62,10.59216695]
[1772064433176,4.28649385,88.755,88.672,0.03086217]
[1772064433376,4.28649385,88.755,88.691,0.03086217]
[1772064433574,84.48895447,88.769,88.635,8.10971334]
[1772064433575,4.12779273,88.754,88.677,3.96020958]
[1772064433899,230.93647556,88.769,88.62,10.59216695]
[1772064433900,4.12779273,88.759,88.72,10.59216695]
[1772064434075,11.26088082,88.803,88.732,3.96020958]
[1772064434253,129.50012948,88.803,88.732,3.96020958]
[1772064434454,3.69383402,88.797,88.682,3.96020958]
[1772064434650,10.59216695,88.8,88.68,10.59216695]
[1772064434651,10.59216695,88.73,88.68,10.59216695]
[1772064434874,10.59216695,88.75,88.7,10.59216695]
[1772064435067,5.89393046,88.802,88.7,10.59216695]
[1772064435271,10.46674543,88.75,88.7,10.46674543]
[1772064435462,10.46674543,88.74,88.69,10.46674543]
[1772064436068,4.12779273,88.719,88.67,10.46674543]
[1772064436357,10.46674543,88.8,88.699,0.42394792]
[1772064436358,4.12779273,88.767,88.699,0.42394792]
[1772064436694,4.12779273,88.719,88.68,10.46674543]
[1772064436853,9.0546959,88.763,88.629,0.44527496]
[1772064436854,4.12779273,88.689,88.629,0.44527496]
[1772064437055,4.12779273,88.689,88.57,45.16172254]
[1772064437056,4.12779273,88.669,88.63,10.46674543]
[1772064437281,4.12779273,88.719,88.661,0.44527496]
[1772064437465,4.12779273,88.719,88.67,10.46674543]
[1772064437664,4.12779273,88.709,88.67,10.46674543]
[1772064437872,4.12779273,88.709,88.68,10.46674543]
[1772064438367,11.27294043,88.708,88.68,10.46674543]
[1772064438975,4.12779273,88.739,88.7,10.46674543]
[1772064439182,4.12779273,88.729,88.68,10.46674543]
[1772064439358,4.12779273,88.719,88.68,10.46674543]
[1772064439963,4.12779273,88.719,88.666,0.50790361]
[1772064440172,4.12779273,88.719,88.68,10.46674543]
[1772064440366,4.12779273,88.717,88.68,10.46674543]
[1772064440597,4.12779273,88.741,88.71,10.46674543]
[1772064440888,11.26811815,88.746,88.68,10.46674543]
[1772064440889,11.26811815,88.746,88.72,10.46674543]
[1772064441096,15.39591088,88.746,88.704,0.52831494]
[1772064441260,4.12779273,88.745,88.7,10.46674543]
[1772064441589,4.12779273,88.745,88.71,10.46674543]
[1772064442082,4.12779273,88.729,88.69,10.46674543]
[1772064442580,11.27039942,88.728,88.7,10.46674543]
[1772064442959,11.27039942,88.728,88.679,0.54838604]
[1772064443161,11.27039942,88.728,88.7,10.46674543]
[1772064443377,15.39819215,88.728,88.7,10.46674543]
[1772064443762,11.27039942,88.728,88.7,10.46674543]
[1772064444180,11.26975314,88.734,88.71,10.46674543]
[1772064444379,11.26975314,88.734,88.68,39.4677492]
[1772064444380,15.39565228,88.748,88.72,10.46674543]
[1772064444684,4.12779273,88.747,88.71,10.46674543]
[1772064445667,4.12779273,88.747,88.688,0.60734168]
[1772064445869,4.28457799,88.729,88.64,0.28432314]
[1772064446069,4.28457799,88.719,88.68,10.46674543]
[1772064446302,4.28457799,88.719,88.67,10.46674543]
[1772064446594,4.28457799,88.717,88.68,10.46674543]
[1772064447587,4.28457799,88.717,88.653,0.6828838]
[1772064447766,4.28457799,88.709,88.67,10.46674543]
[1772064447967,4.28457799,88.709,88.66,10.46674543]
[1772064448581,28.17917446,88.718,88.68,10.46674543]
[1772064448784,4.28457799,88.709,88.67,10.46674543]
[1772064449494,4.28457799,88.699,88.644,0.71938352]
[1772064449699,28.17917446,88.718,88.67,10.46674543]
[1772064449700,4.28457799,88.709,88.67,10.46674543]
[1772064450392,4.28457799,88.709,88.68,10.46674543]
[1772064450696,11.27141568,88.72,88.68,10.46674543]
[1772064450902,45.06246795,88.766,88.68,10.46674543]
[1772064450903,11.26811349,88.746,88.71,10.46674543]
[1772064451107,11.26811349,88.746,88.71,11.20403614]
[1772064451576,4.22379283,88.739,88.7,10.46674543]
[1772064451775,4.22379283,88.729,88.69,10.46674543]
[1772064451992,4.22379283,88.745,88.7,10.46674543]
[1772064452194,4.22379283,88.745,88.699,0.76494868]
[1772064452195,4.22379283,88.745,88.71,10.46674543]
[1772064452804,4.22379283,88.743,88.7,10.46674543]
[1772064452992,4.22379283,88.719,88.67,10.46674543]
[1772064453192,4.22379283,88.719,88.68,10.46674543]
[1772064453408,4.22379283,88.719,88.67,10.46674543]
[1772064453614,185.92806271,88.744,88.67,10.46674543]
[1772064453615,4.22379283,88.709,88.67,10.46674543]
[1772064454114,4.22379283,88.709,88.68,10.46674543]
[1772064454417,4.22379283,88.721,88.68,10.46674543]
[1772064454711,4.22379283,88.732,88.668,0.76494868]
[1772064454914,4.22379283,88.728,88.68,10.46674543]
[1772064455495,45.06979229,88.752,88.68,10.46674543]
[1772064455496,4.22379283,88.751,88.71,10.46674543]
[1772064455910,4.22379283,88.749,88.7,10.46674543]
[1772064456112,4.22379283,88.729,88.68,11.23169411]
[1772064456620,4.22379283,88.751,88.71,10.46674543]
[1772064456913,4.22379283,88.76,88.72,10.46674543]
[1772064457117,4.22379283,88.76,88.68,10.46674543]
[1772064457118,4.22379283,88.749,88.699,0.76494868]
[1772064457417,4.22379283,88.749,88.71,10.46674543]
[1772064457800,4.22379283,88.749,88.699,40.2242277]
[1772064457801,4.22379283,88.749,88.7,10.46674543]
[1772064458030,4.22379283,88.749,88.7,21.74070258]
[1772064458319,4.22379283,88.749,88.71,10.46674543]
[1772064458523,4.22379283,88.749,88.72,10.46674543]
[1772064458726,4.22379283,88.759,88.72,10.46674543]
[1772064459016,4.22379283,88.757,88.72,10.46674543]
[1772064459317,4.22379283,88.757,88.71,22.50434074]
[1772064459622,4.22379283,88.757,88.72,10.46674543]
[1772064461122,4.22379283,88.789,88.73,10.46674543]
[1772064461300,4.22379283,88.769,88.72,21.73809941]
[1772064461625,4.22379283,88.769,88.73,10.46674543]
[1772064462314,14.69053826,88.78,88.74,10.46674543]
[1772064462503,4.22379283,88.779,88.74,10.46674543]
[1772064462817,4.22379283,88.759,88.72,10.46674543]
[1772064463607,4.22379283,88.757,88.72,10.46674543]
[1772064463803,11.26659005,88.758,88.675,3.69383402]
[1772064463804,4.22379283,88.749,88.71,10.46674543]
[1772064464227,39.43306518,88.758,88.72,10.46674543]
[1772064464723,11.26659005,88.758,88.73,10.46674543]
[1772064465107,11.26659005,88.758,88.718,0.76494868]
[1772064465312,11.26659005,88.758,88.73,10.46674543]
[1772064465515,11.26462549,88.774,88.74,10.46674543]
[1772064465717,45.0251163,88.84,88.74,10.46674543]
[1772064465718,45.02091728,88.848,88.761,0.76494868]
[1772064466004,4.22379283,88.823,88.79,10.46674543]
[1772064466425,11.25822736,88.824,88.744,3.69383402]
[1772064466426,4.22379283,88.819,88.77,10.46674543]
[1772064466824,4.22379283,88.809,88.76,10.46674543]
[1772064467204,11.25695116,88.834,88.791,0.66494868]
[1772064467518,4.22379283,88.819,88.77,10.46674543]
[1772064467723,39.39932907,88.834,88.75,10.46674543]
[1772064467724,4.22379283,88.789,88.75,10.46674543]
[1772064468227,4.22379283,88.789,88.742,11.26862139]
[1772064468228,4.22379283,88.801,88.76,10.46674543]
[1772064468523,4.22379283,88.799,88.76,10.46674543]
[1772064469023,39.40642661,88.818,88.78,10.46674543]
[1772064469024,4.22379283,88.817,88.78,10.46674543]
[1772064469326,11.25798542,88.826,88.79,10.46674543]
[1772064469503,4.22379283,88.825,88.78,10.46674543]
[1772064469707,4.22379283,88.825,88.766,0.66494868]
[1772064470018,4.22379283,88.823,88.79,10.46674543]
[1772064470530,11.25821849,88.824,88.8,10.46674543]
[1772064470705,11.25748187,88.83,88.8,10.46674543]
[1772064472414,4.22379283,88.845,88.81,10.46674543]
[1772064472721,11.25695116,88.834,88.81,10.46674543]
[1772064472933,11.25695116,88.834,88.765,3.69383402]
[1772064472934,4.22379283,88.833,88.8,10.46674543]
[1772064473311,11.25527,88.848,88.81,10.46674543]
[1772064473515,0.2725451,88.877,88.82,10.46674543]
[1772064473713,0.2725451,88.877,88.8,10.46674543]
[1772064473714,0.2725451,88.877,88.87,10.46674543]
[1772064473912,4.5,88.898,88.87,10.46674543]
[1772064474112,16.46393398,89.027,88.87,10.46674543]
[1772064474113,4.5,88.909,88.87,10.46674543]
[1772064474325,4.5,88.899,88.864,5.8853056]
[1772064474523,4.5,88.889,88.864,5.8853056]
[1772064475211,4.5,88.918,88.88,10.46674543]
[1772064475421,11.24619035,88.919,88.87,10.46674543]
[1772064475422,4.5,88.909,88.87,10.46674543]
[1772064475715,4.5,88.909,88.864,5.8853056]
[1772064476229,4.5,88.889,88.85,10.46674543]
[1772064476532,4.5,88.889,88.785,64.83079459]
[1772064476533,4.5,88.889,88.806,11.26050041]
[1772064476720,4.5,88.879,88.84,10.46674543]
[1772064477429,84.35686325,88.908,88.816,28.14789243]
[1772064477430,4.5,88.907,88.816,28.14789243]
[1772064477608,4.5,88.907,88.87,10.46674543]
[1772064477804,4.5,88.907,88.816,28.14789243]
[1772064477805,4.5,88.899,88.85,10.46674543]
[1772064478012,4.5,88.899,88.816,28.14789243]
[1772064478013,4.5,88.889,88.816,28.14789243]
[1772064478219,4.5,88.887,88.85,10.46674543]
[1772064478530,4.5,88.859,88.82,10.46674543]
[1772064479306,4.5,88.859,88.81,10.46674543]
[1772064479629,4.5,88.859,88.784,39.42151738]
[1772064479630,4.5,88.859,88.82,10.46674543]
[1772064480431,4.5,88.857,88.82,10.46674543]
[1772064481030,39.38868756,88.858,88.746,45.07221086]
[1772064481031,4.5,88.849,88.746,45.07221086]
[1772064481230,4.5,88.839,88.8,10.46674543]
[1772064481819,4.5,88.839,88.692,45.09948599]
[1772064482132,4.5,88.839,88.62,41.86698172]
[1772064482133,4.5,88.759,88.71,10.46674543]
[1772064482516,4.5,88.757,88.711,11.2725592]
[1772064482717,4.5,88.757,88.71,10.46674543]
[1772064482909,4.5,88.739,88.7,10.46674543]
[1772064483114,4.5,88.729,88.68,10.46674543]
[1772064483517,4.5,88.719,88.66,11.47904353]
[1772064483718,185.89873586,88.758,88.66,11.47904353]
[1772064483719,4.5,88.699,88.66,10.66674543]
[1772064483924,10.46674543,88.69,88.66,0.2]
[1772064484131,4.5,88.689,88.66,0.2]
[1772064484634,10.46674543,88.74,88.66,10.66674543]
[1772064484635,4.5,88.7,88.66,10.66674543]
[1772064485016,14.96674543,88.7,88.66,10.66674543]
[1772064485217,4.5,88.699,88.661,11.27891632]
[1772064485852,10.46674543,88.68,88.64,10.46674543]
[1772064486139,4.5,88.669,88.63,11.28281577]
[1772064486316,4.5,88.669,88.63,21.7495612]
[1772064486946,4.5,88.667,88.63,21.7495612]
[1772064487235,4.5,88.667,88.589,45.15220432]
[1772064487236,4.5,88.659,88.61,10.46674543]
[1772064487439,4.5,88.659,88.62,10.46674543]
[1772064487933,4.5,88.659,88.607,11.28579006]
[1772064488134,4.5,88.649,88.61,10.46674543]
[1772064488533,39.47309062,88.668,88.568,28.22688836]
[1772064488534,4.5,88.639,88.568,28.22688836]
[1772064488841,4.5,88.629,88.59,10.46674543]
[1772064489416,4.5,88.619,88.568,28.22688836]
[1772064489619,4.5,88.619,88.57,10.46674543]
[1772064490015,4.5,88.609,88.57,10.46674543]
[1772064490220,4.5,88.589,88.56,0.2]
[1772064490734,4.5,88.587,88.56,0.2]
[1772064490939,4.5,88.579,88.56,0.2]
[1772064492115,11.28629956,88.603,88.561,11.29165208]
[1772064492631,4.5,88.604,88.57,10.46674543]
[1772064492933,4.5,88.604,88.571,11.29037721]
[1772064493976,45.12149357,88.65,88.571,11.29037721]
[1772064493977,4.5,88.633,88.58,10.46674543]
[1772064494155,4.5,88.649,88.61,10.46674543]
[1772064495336,4.5,88.647,88.61,10.46674543]
[1772064495536,50.8,88.662,88.63,10.46674543]
[1772064496041,11.27891632,88.661,88.63,10.46674543]
[1772064496423,50.8,88.662,88.63,10.46674543]
[1772064496723,50.8,88.662,88.64,10.46674543]
[1772064497343,42.45316714,88.662,88.65,10.47899942]
[1772064497845,42.45316714,88.662,88.641,11.28146117]
[1772064498047,42.45316714,88.662,88.64,10.47899942]
[1772064498353,4.5,88.661,88.63,10.47899942]
[1772064498523,4.5,88.661,88.614,28.21193452]
[1772064498524,4.5,88.649,88.573,0.28432314]
[1772064498727,4.5,88.649,88.61,10.47899942]
[1772064499338,4.5,88.647,88.61,21.76429917]
[1772064499831,4.5,88.647,88.62,10.47899942]
[1772064500034,4.5,88.679,88.64,10.47899942]
[1772064500238,4.5,88.687,88.61,39.49881966]
[1772064500538,4.5,88.687,88.573,45.16031913]
[1772064500539,4.5,88.659,88.62,10.47899942]
[1772064500746,4.5,88.649,88.598,11.28687328]
[1772064500931,4.5,88.649,88.6,10.47899942]
[1772064501439,4.5,88.647,88.601,11.28655432]
[1772064502230,4.5,88.647,88.61,10.47899942]
[1772064502445,11.27992112,88.654,88.62,10.47899942]
[1772064502949,4.5,88.653,88.62,10.47899942]
[1772064503324,4.5,88.653,88.61,10.47899942]
[1772064504930,4.5,88.651,88.61,21.76438914]
[1772064505243,11.28006136,88.652,88.61,10.47899942]
[1772064505244,4.5,88.649,88.61,10.47899942]
[1772064505429,4.5,88.649,88.605,11.28603981]
[1772064505747,4.5,88.649,88.61,10.47899942]
[1772064506450,4.5,88.649,88.62,10.47899942]
[1772064506628,4.5,88.649,88.61,10.47899942]
[1772064507030,4.5,88.647,88.61,21.76437411]
[1772064507346,4.5,88.647,88.61,10.47899942]
[1772064509640,4.5,88.645,88.573,28.22530568]
[1772064509849,4.5,88.645,88.61,10.47899942]
[1772064510037,4.5,88.645,88.6,10.47899942]
[1772064510543,39.48288698,88.646,88.58,10.47899942]
[1772064510544,4.5,88.629,88.58,10.47899942]
[1772064510744,39.48288698,88.646,88.565,11.29114209]
[1772064510745,4.5,88.619,88.57,10.47899942]
[1772064511044,129.7294858,88.646,88.561,11.29165208]
[1772064511045,4.5,88.609,88.561,11.29165208]
[1772064511633,4.5,88.597,88.561,11.29165208]
[1772064512826,11.28719129,88.596,88.561,11.29165208]
[1772064513554,4.5,88.595,88.561,11.29165208]
[1772064515250,4.5,88.595,88.56,0.2]
[1772064515251,4.5,88.589,88.56,0.2]
[1772064516962,4.5,88.589,88.561,11.29165208]
[1772064517249,4.5,88.587,88.56,0.2]
[1772064519053,4.5,88.579,88.56,0.2]
[1772064520139,28.21723685,88.599,88.56,0.2]
[1772064520344,4.5,88.608,88.57,10.47899942]
[1772064520538,4.5,88.619,88.58,10.47899942]
[1772064520740,11.28298863,88.629,88.6,10.47899942]
[1772064520941,4.5,88.63,88.6,10.47899942]
[1772064521242,11.28168625,88.64,88.61,10.47899942]
[1772064521659,55.34,88.643,88.61,10.47899942]
[1772064521835,50.84,88.643,88.62,10.47899942]
[1772064522261,4.5,88.642,88.61,10.47899942]
[1772064522645,4.5,88.639,88.6,10.47899942]
[1772064523271,10.47899942,88.63,88.59,10.47899942]
[1772064523565,4.5,88.629,88.583,11.28884774]
[1772064525467,15.78311594,88.628,88.59,10.47899942]